bitfinex-derivatives/quotes_SOLF0:USTF0_20250124
["timestamp","ask_amount","ask_price","bid_price","bid_amount"]
[1737761664648,0.02784799,253.91,253.88,1.253]
[1737761664844,17.29695994,254.04,253.93,3.9378]
[1737761665152,17.29695994,254.04,253.88,1.253]
[1737761665348,1.3164,254.04,253.88,1.253]
[1737761665649,6.19431339,253.99,253.9,6.19431339]
[1737761666053,0.02774603,253.97,253.92,0.02601839]
[1737761667350,3.96494603,253.97,253.92,0.02601839]
[1737761669450,3.96494603,253.97,253.92,3.96401839]
[1737761670347,0.02774603,253.97,253.92,0.02601839]
[1737761670552,0.02774603,253.97,253.93,6.19431339]
[1737761670953,0.02774603,253.97,253.96,3.9374]
[1737761671948,0.02774603,253.97,253.96,10.13171339]
[1737761672152,6.19431339,254.08,253.96,6.19431339]
[1737761672455,6.19431339,254.08,254.02,3.9364]
[1737761672853,6.19431339,254.11,254.04,3.9361]
[1737761673551,0.02822975,254.1,254.05,0.02865019]
[1737761674049,3.96342975,254.1,254.05,0.02865019]
[1737761674454,0.02822975,254.1,254.05,6.22296358]
[1737761675751,0.02822975,254.1,254.05,0.02865019]
[1737761688160,3.96342975,254.1,254.05,0.02865019]
[1737761688459,0.02822975,254.1,254.05,0.02865019]
[1737761688660,0.02822975,254.1,254.07,9.66558285]
[1737761692271,0.02822975,254.1,254.05,0.02865019]
[1737761694577,0.02822975,254.1,254.07,9.66558285]
[1737761695673,0.02822975,254.1,254.09,6.18482216]
[1737761696566,3.96342975,254.1,254.06,6.18482216]
[1737761696767,3.96342975,254.1,254.05,0.02865019]
[1737761697978,0.02822975,254.1,254.05,0.02865019]
[1737761698572,3.9354,254.09,254.05,0.02865019]
[1737761698866,0.02822975,254.1,254.05,0.02865019]
[1737761699275,3.9354,254.09,254.05,0.02865019]
[1737761699471,0.02822975,254.1,254.05,0.02865019]
[1737761702377,0.02822975,254.1,254.07,9.66857121]
[1737761702981,0.02822975,254.1,254.05,0.02865019]
[1737761706789,3.9358,254.06,254.05,5.019e-05]
[1737761708693,3.9373,253.97,253.87,83.36857121]
[1737761709792,0.02762531,253.95,253.89,0.03026648]
[1737761712094,3.96522531,253.95,253.89,0.03026648]
[1737761712794,0.02762531,253.95,253.89,0.03026648]
[1737761713393,3.9383,253.91,253.89,0.03026648]
[1737761714096,3.94,253.79,253.72,9.66857121]
[1737761714296,9.66857121,253.88,253.67,9.66857121]
[1737761714496,9.66857121,253.88,253.71,9.66857121]
[1737761714895,3.9393,253.84,253.71,9.66857121]
[1737761715192,0.02565532,253.8,253.75,0.03025148]
[1737761715393,3.939,253.86,253.75,9.66857121]
[1737761715693,9.66857121,253.96,253.79,9.66857121]
[1737761715897,3.9382,253.91,253.79,9.66857121]
[1737761716195,9.66857121,253.96,253.79,9.66857121]
[1737761716793,0.02615765,253.9,253.85,3.9648335]
[1737761717095,0.02615765,253.9,253.85,0.0257335]
[1737761717297,9.66857121,254.04,253.87,9.66857121]
[1737761717491,1.3417,254.06,253.91,9.66857121]
[1737761717896,3.9367,254.01,253.95,9.66857121]
[1737761718098,1.3417,254.06,253.95,9.66857121]
[1737761718500,0.02582339,254.03,253.98,0.02822832]
[1737761718800,3.96222339,254.03,253.98,0.02822832]
[1737761719697,0.02582339,254.03,253.98,0.02822832]
[1737761722994,9.6943946,254.03,253.85,9.66857121]
[1737761723196,9.66857121,254.03,253.85,9.66857121]
[1737761723399,9.66857121,254.03,253.81,2.5272]
[1737761723701,2.6521,254.02,253.81,2.5272]
[1737761724302,0.03017219,253.97,253.91,0.02497986]
[1737761724705,3.9379,253.93,253.91,0.02497986]
[1737761724899,9.66857121,253.95,253.81,2.5272]
[1737761726198,0.02878611,253.91,253.85,0.02814852]
[1737761726407,3.96698611,253.91,253.85,0.02814852]
[1737761726600,0.02878611,253.91,253.85,0.02814852]
[1737761727103,3.9389,253.87,253.85,0.02814852]
[1737761728502,0.02878611,253.91,253.85,0.02814852]
[1737761729902,0.02878611,253.91,253.86,3.9389]
[1737761730205,0.02878611,253.91,253.85,0.02814852]
[1737761730808,3.9385,253.89,253.85,0.02814852]
[1737761731611,3.9386,253.88,253.85,0.02814852]
[1737761735312,3.9388,253.87,253.85,0.02814852]
[1737761735813,3.9389,253.86,253.85,0.02814852]
[1737761747719,3.9399,253.81,253.72,12.38247121]
[1737761749022,3.96996142,253.81,253.75,1.38793731]
[1737761750122,3.96996142,253.81,253.76,3.9405]
[1737761750623,0.03006142,253.81,253.76,3.9405]
[1737761752122,3.96976142,253.81,253.76,3.9405]
[1737761754119,3.96976142,253.81,253.75,1.38793731]
[1737761754426,3.94,253.8,253.75,1.38793731]
[1737761758822,0.03006142,253.81,253.75,0.02553731]
[1737761760228,3.9404,253.77,253.75,0.02553731]
[1737761761831,0.03006142,253.81,253.75,0.02553731]
[1737761762031,3.9405,253.76,253.75,0.02553731]
[1737761764531,3.942,253.67,253.63,1.2598]
[1737761764731,9.66857121,253.76,253.63,1.2598]
[1737761764921,3.9409,253.74,253.65,9.66857121]
[1737761765527,0.02675303,253.72,253.67,0.02530022]
[1737761765732,0.02675303,253.72,253.68,3.9417]
[1737761765922,0.02675303,253.72,253.67,0.02530022]
[1737761766327,3.9414,253.71,253.67,0.02530022]
[1737761766528,0.02675303,253.72,253.67,0.02530022]
[1737761768130,3.9417,253.68,253.67,0.02530022]
[1737761769434,3.9417,253.68,253.67,2.2e-07]
[1737761769632,13.61027121,253.68,253.67,2.2e-07]
[1737761770029,3.9439,253.54,253.48,10.91637121]
[1737761770737,9.66857121,253.66,253.48,10.91637121]
[1737761771136,3.9432,253.59,253.54,0.02671935]
[1737761771435,9.66857121,253.58,253.4,146.16220871]
[1737761771631,0.02933124,253.6,253.4,136.4936375]
[1737761771632,9.66857121,253.54,253.4,136.4936375]
[1737761771934,3.9452,253.46,253.4,136.4936375]
[1737761772129,3.9452,253.46,253.39,3.9462]
[1737761772625,0.02642592,253.45,253.4,0.02764431]
[1737761773633,0.02642592,253.45,253.4,9.69621552]
[1737761774036,0.02642592,253.45,253.41,3.9458]
[1737761774230,0.02642592,253.45,253.4,9.69621552]
[1737761776239,0.02642592,253.45,253.41,3.9459]
[1737761776639,0.02642592,253.45,253.4,9.69621552]
[1737761776932,0.02642592,253.45,253.4,0.02764431]
[1737761778440,3.9458,253.42,253.4,0.02764431]
[1737761778740,0.02642592,253.45,253.4,0.02764431]
[1737761779642,3.9456,253.43,253.4,0.02764431]
[1737761781245,3.97182592,253.45,253.4,0.02764431]
[1737761782040,0.02642592,253.45,253.4,0.02764431]
[1737761782241,3.9455,253.44,253.4,0.02764431]
[1737761782438,0.02642592,253.45,253.4,0.02764431]
[1737761785744,3.9455,253.44,253.4,0.02764431]
[1737761786848,3.97172592,253.45,253.4,0.02764431]
[1737761787344,3.9456,253.43,253.4,0.02764431]
[1737761787839,0.02642592,253.45,253.4,0.02764431]
[1737761788045,3.97182592,253.45,253.4,0.02764431]
[1737761788544,3.9455,253.44,253.4,0.02764431]
[1737761788945,0.02642592,253.45,253.4,0.02764431]
[1737761789847,3.9459,253.41,253.4,0.02764431]
[1737761793239,9.66857121,253.41,253.32,3.9472]
[1737761793441,9.66857121,253.41,253.31,1.263]
[1737761793643,9.66857121,253.41,253.32,3.9473]
[1737761793840,3.9464,253.38,253.31,1.263]
[1737761794045,9.66857121,253.41,253.31,1.263]
[1737761794244,9.66857121,253.45,253.36,3.9467]
[1737761794448,0.0264007,253.39,253.36,3.9467]
[1737761795147,0.0264007,253.39,253.38,3.9464]
[1737761795540,0.0264007,253.39,253.36,3.9466]
[1737761795740,0.0264007,253.39,253.33,0.02721928]
[1737761797950,3.947,253.35,253.33,0.02721928]
[1737761798446,0.0264007,253.39,253.33,0.02721928]
[1737761798750,9.66857121,253.36,253.25,1.255]
[1737761799252,9.66857121,253.4,253.25,1.255]
[1737761799550,9.66857121,253.44,253.25,1.255]
[1737761799753,3.9461,253.4,253.28,9.66857121]
[1737761799950,0.02734579,253.37,253.32,0.02948704]
[1737761800952,0.02734579,253.37,253.35,3.9468]
[1737761801347,9.66857121,253.48,253.32,0.02948704]
[1737761801544,3.9455,253.44,253.38,3.9463]
[1737761801747,9.66857121,253.48,253.3,1.335]
[1737761802653,0.02806348,253.42,253.38,3.9464]
[1737761804352,9.66857121,253.52,253.36,9.69624107]
[1737761804657,10.99067121,253.56,253.37,1.2845]
[1737761804858,3.9442,253.53,253.47,3.9449]
[1737761805057,9.66857121,253.6,253.4,9.66857121]
[1737761805256,9.66857121,253.6,253.44,9.66857121]
[1737761805453,3.9432,253.59,253.48,3.9447]
[1737761805755,0.02969832,253.55,253.49,1.38647704]
[1737761806258,0.02969832,253.55,253.52,3.9442]
[1737761806557,0.02969832,253.55,253.49,11.05504825]
[1737761806750,11.03447121,253.69,253.5,1.3454]
[1737761806954,11.03447121,253.69,253.57,3.9434]
[1737761807257,3.9423,253.65,253.57,3.9434]
[1737761807955,0.02543145,253.64,253.58,0.02779009]
[1737761808460,0.02543145,253.64,253.58,3.97109009]
[1737761808960,0.02543145,253.64,253.6,3.9429]
[1737761809155,0.02543145,253.64,253.58,0.02779009]
[1737761809656,0.02543145,253.64,253.58,1.29299009]
[1737761809959,3.941,253.73,253.58,1.29299009]
[1737761810162,3.941,253.73,253.58,1.2652]
[1737761810359,3.941,253.73,253.61,9.66857121]
[1737761810861,3.941,253.73,253.66,3.942]
[1737761811162,0.02505739,253.7,253.66,3.942]
[1737761812762,0.02505739,253.7,253.64,0.02585691]
[1737761814865,3.9418,253.68,253.64,0.02585691]
[1737761815465,0.02505739,253.7,253.64,0.02585691]
[1737761816662,3.9418,253.68,253.64,0.02585691]
[1737761816962,0.02505739,253.7,253.64,0.02585691]
[1737761817964,3.9421,253.66,253.55,3.9437]
[1737761818164,9.66857121,253.69,253.55,3.9437]
[1737761818665,3.9428,253.62,253.56,3.9435]
[1737761819266,3.97025434,253.62,253.56,3.97003806]
[1737761820260,3.9431,253.6,253.56,0.02653806]
[1737761820868,0.02745434,253.62,253.56,0.02653806]
[1737761821666,3.9434,253.58,253.56,0.02653806]
[1737761821969,0.02745434,253.62,253.56,0.02653806]
[1737761822169,3.9431,253.6,253.56,0.02653806]
[1737761822766,0.02745434,253.62,253.56,0.02653806]
[1737761823473,3.9428,253.61,253.56,0.02653806]
[1737761824171,3.943,253.6,253.56,0.02653806]
[1737761824373,0.02745434,253.62,253.56,0.02653806]
[1737761824672,3.9429,253.61,253.56,0.02653806]
[1737761824869,0.02745434,253.62,253.56,0.02653806]
[1737761826969,3.9429,253.61,253.56,0.02653806]
[1737761827175,0.02745434,253.62,253.56,0.02653806]
[1737761827671,0.02745434,253.62,253.6,3.9429]
[1737761828076,3.9409,253.74,253.61,9.66857121]
[1737761828275,9.66857121,253.78,253.67,3.9418]
[1737761828472,9.66857121,253.78,253.62,1.3553]
[1737761828679,9.66857121,253.73,253.58,9.66857121]
[1737761828872,9.66857121,253.69,253.53,9.66857121]
[1737761829073,9.66857121,253.69,253.51,1.3553]
[1737761829270,0.02615587,253.64,253.58,0.0277939]
[1737761830078,3.9426,253.63,253.58,0.0277939]
[1737761830380,0.02615587,253.64,253.58,0.0277939]
[1737761831582,3.943,253.6,253.58,0.0277939]
[1737761833182,3.9435,253.57,253.51,1.3553]
[1737761833480,3.9435,253.57,253.51,5.2996]
[1737761834181,3.96861796,253.57,253.51,5.32608454]
[1737761834683,3.96861796,253.57,253.52,3.9442]
[1737761834882,3.9436,253.56,253.51,1.38178454]
[1737761835387,3.9436,253.56,253.51,5.32608454]
[1737761835784,0.02511796,253.57,253.51,5.32608454]
[1737761836182,0.02511796,253.57,253.52,3.9442]
[1737761837086,3.96861796,253.57,253.52,3.9442]
[1737761837787,3.96861796,253.57,253.51,0.02648454]
[1737761837989,3.9437,253.56,253.51,0.02648454]
[1737761838493,0.02511796,253.57,253.51,0.02648454]
[1737761839991,3.9437,253.56,253.51,0.02648454]
[1737761840993,3.9438,253.55,253.51,0.02648454]
[1737761841996,3.96861796,253.57,253.51,3.97068454]
[1737761844199,3.96861796,253.57,253.52,3.9442]
[1737761845599,3.9436,253.56,253.51,0.02648454]
[1737761847202,3.9436,253.56,253.51,3.97068454]
[1737761848096,0.02511796,253.57,253.51,0.02648454]
[1737761848300,3.944,253.54,253.51,0.02648454]
[1737761848500,0.02511796,253.57,253.51,0.02648454]
[1737761849103,3.9442,253.52,253.51,0.02648454]
[1737761852905,0.02511796,253.57,253.51,0.02648454]
[1737761853105,3.944,253.54,253.51,0.02648454]
[1737761853705,3.9441,253.53,253.51,0.02648454]
[1737761859908,3.9442,253.52,253.51,0.02648454]
[1737761860910,3.9446,253.5,253.45,1.2987]
[1737761861107,3.9446,253.5,253.45,5.2439]
[1737761861409,3.9447,253.49,253.45,1.2987]
[1737761861608,9.7096993,253.57,253.41,3.9458]
[1737761861803,1.3351,253.56,253.41,3.9458]
[1737761862003,0.02699418,253.52,253.46,0.02852241]
[1737761863208,3.9451,253.47,253.46,0.02852241]
[1737761864512,0.02699418,253.52,253.46,0.02852241]
[1737761864709,3.9448,253.48,253.46,0.02852241]
[1737761865313,3.945,253.47,253.46,0.02852241]
[1737761869108,0.02699418,253.52,253.46,0.02852241]
[1737761869313,3.9446,253.5,253.46,0.02852241]
[1737761870016,3.97139418,253.52,253.46,3.97352241]
[1737761870414,3.9445,253.51,253.46,3.97352241]
[1737761871515,3.9447,253.5,253.46,0.02852241]
[1737761873811,0.02699418,253.52,253.46,0.02852241]
[1737761874919,0.02699418,253.52,253.46,1.30662241]
[1737761875619,0.02699418,253.52,253.51,3.9444]
[1737761876417,1.3025,253.65,253.55,3.9437]
[1737761877513,0.02848526,253.63,253.57,0.02616585]
[1737761878021,3.97098526,253.63,253.57,0.02616585]
[1737761878519,3.97098526,253.63,253.58,3.9432]
[1737761878520,0.02848526,253.63,253.58,3.9432]
[1737761879019,0.02848526,253.63,253.57,0.02616585]
[1737761879219,0.02848526,253.63,253.57,3.96956585]
[1737761879721,3.943,253.6,253.57,0.02616585]
[1737761880024,0.02848526,253.63,253.57,0.02616585]
[1737761880816,9.7096993,253.62,253.46,1.2781]
[1737761881319,3.9434,253.58,253.5,3.9445]
[1737761881520,9.7096993,253.62,253.5,3.9445]
[1737761881722,9.7096993,253.62,253.46,1.2781]
[1737761882115,0.02938056,253.57,253.51,0.02588795]
[1737761882317,9.7096993,253.58,253.45,1.2385]
[1737761882513,0.0255417,253.57,253.51,0.02918347]
[1737761883222,3.9439,253.55,253.51,0.02918347]
[1737761884225,0.0255417,253.57,253.51,0.02918347]
[1737761884725,0.0255417,253.57,253.52,3.9441]
[1737761884925,0.0255417,253.57,253.51,0.02918347]
[1737761886138,9.7096993,253.66,253.51,0.02918347]
[1737761886338,21.35620722,253.68,253.53,9.7096993]
[1737761886535,21.35620722,253.68,253.57,3.9434]
[1737761886734,25.29810722,253.68,253.53,9.7096993]
[1737761886937,15.08534658,253.74,253.5,9.7096993]
[1737761887236,5.37564728,253.74,253.62,9.7096993]
[1737761887537,5.37564728,253.74,253.72,3.941]
[1737761888236,5.37564728,253.74,253.51,9.7096993]
[1737761888439,9.7096993,253.72,253.52,3.9764]
[1737761888737,3.9424,253.64,253.6,0.0265967]
[1737761889133,0.0259386,253.65,253.6,0.0265967]
[1737761889329,3.9682386,253.65,253.6,0.0265967]
[1737761889930,3.9424,253.64,253.6,0.0265967]
[1737761891338,0.0259386,253.65,253.6,0.0265967]
[1737761891540,0.0259386,253.65,253.6,3.9694967]
[1737761891840,0.0259386,253.65,253.6,0.0265967]
[1737761892442,0.0259386,253.65,253.64,3.9423]
[1737761894243,15.52283846,253.8,253.69,3.9415]
[1737761894746,1.2836,253.81,253.69,3.9415]
[1737761894938,15.52283846,253.85,253.62,2.6276]
[1737761895439,0.02870758,253.76,253.71,0.0282147]
[1737761895636,0.02870758,253.76,253.62,2.6276]
[1737761895637,15.52283846,253.8,253.62,2.6276]
[1737761895841,0.02786785,253.76,253.71,0.02683901]
[1737761896043,3.941,253.73,253.71,0.02683901]
[1737761896545,3.9416,253.7,253.63,3.9425]
[1737761896737,15.52283846,253.75,253.62,2.6276]
[1737761896942,3.9412,253.72,253.62,1.3583]
[1737761897246,15.52283846,253.75,253.62,1.3583]
[1737761897545,0.0264509,253.71,253.66,0.02518631]
[1737761898647,3.9418,253.68,253.66,0.02518631]
[1737761899942,15.52283846,253.7,253.56,3.9435]
[1737761900142,3.9426,253.63,253.56,3.9435]
[1737761900548,3.9426,253.63,253.57,3.9434]
[1737761901150,3.97188996,253.63,253.57,3.97333885]
[1737761901348,3.97188996,253.63,253.57,0.02993885]
[1737761901547,0.02928996,253.63,253.57,0.02993885]
[1737761903246,3.941,253.73,253.67,3.9419]
[1737761903550,15.52283846,253.81,253.56,15.52283846]
[1737761903751,3.9404,253.77,253.7,3.9414]
[1737761903951,15.52283846,253.81,253.7,3.9414]
[1737761904544,0.02989988,253.78,253.73,0.02939396]
[1737761904951,3.9407,253.75,253.73,9.396e-05]
[1737761905950,3.9423,253.65,253.55,1.2476]
[1737761906452,3.9424,253.64,253.59,3.9431]
[1737761906948,3.9419,253.68,253.61,3.9427]
[1737761907249,0.02899898,253.64,253.59,0.02508294]
[1737761907451,15.52283846,253.76,253.55,1.2476]
[1737761907645,0.02900396,253.64,253.59,0.02760144]
[1737761907857,3.9417,253.68,253.62,3.9426]
[1737761908051,0.03031702,253.64,253.62,3.9426]
[1737761909856,0.03031702,253.64,253.63,3.9425]
[1737761914260,0.03031702,253.64,253.6,3.943]
[1737761916760,3.9425,253.63,253.59,0.02668198]
[1737761917150,0.03031702,253.64,253.59,0.02668198]
[1737761919059,3.97271702,253.64,253.59,3.96978198]
[1737761919859,3.9425,253.63,253.59,0.02668198]
[1737761920252,0.03031702,253.64,253.59,0.02668198]
[1737761920759,3.9428,253.62,253.59,0.02668198]
[1737761922961,0.03031702,253.64,253.59,0.02668198]
[1737761923158,0.03031702,253.64,253.6,3.943]
[1737761923862,3.97271702,253.64,253.6,3.943]
[1737761924564,0.03031702,253.64,253.59,0.02668198]
[1737761925662,0.03031702,253.64,253.62,3.9426]
[1737761926059,0.03031702,253.64,253.59,0.02668198]
[1737761926264,3.9425,253.63,253.59,0.02668198]
[1737761927565,0.03031702,253.64,253.59,0.02668198]
[1737761927765,0.03031702,253.64,253.59,3.96968198]
[1737761928160,0.03031702,253.64,253.59,0.02668198]
[1737761928859,0.03031702,253.64,253.63,3.9425]
[1737761929866,3.9411,253.73,253.59,0.02668198]
[1737761930063,15.07559572,253.79,253.61,9.69994844]
[1737761930265,15.07559572,253.79,253.65,9.69994844]
[1737761930463,15.07559572,253.79,253.66,1.2848]
[1737761931161,0.02850465,253.75,253.7,0.02862046]
[1737761931967,0.02850465,253.75,253.7,3.96992046]
[1737761932566,0.02850465,253.75,253.7,0.02862046]
[1737761933665,0.02850465,253.75,253.73,3.9409]
[1737761933865,0.02850465,253.75,253.7,0.02862046]
[1737761934265,9.69994844,253.71,253.52,9.46185791]
[1737761934467,9.69994844,253.64,253.52,9.46185791]
[1737761934663,9.69994844,253.6,253.52,9.46185791]
[1737761935066,9.69994844,253.6,253.48,1.3496]
[1737761935367,0.02942433,253.57,253.51,0.027204]
[1737761937071,0.02942433,253.57,253.51,3.971504]
[1737761937266,0.02942433,253.57,253.51,0.027204]
[1737761938772,0.02942433,253.57,253.51,3.971504]
[1737761940675,0.02942433,253.57,253.51,0.027204]
[1737761943374,0.02942433,253.57,253.51,3.971504]
[1737761944676,3.97292433,253.57,253.51,3.971504]
[1737761945172,0.02942433,253.57,253.51,0.027204]
[1737761946075,3.9442,253.53,253.51,0.027204]
[1737761948074,9.69994844,253.56,253.51,0.027204]
[1737761948377,3.9439,253.55,253.51,0.027204]
[1737761948880,0.02942433,253.57,253.51,0.027204]
[1737761951479,0.02942433,253.57,253.56,3.9436]
[1737761953382,9.69994844,253.69,253.52,3.9939]
[1737761953578,3.942,253.67,253.6,3.9429]
[1737761953985,9.69994844,253.69,253.52,3.9939]
[1737761954185,3.9421,253.66,253.59,3.943]
[1737761954686,0.02926525,253.65,253.6,0.02531137]
[1737761955488,3.97146525,253.65,253.6,0.02531137]
[1737761957888,3.97146525,253.65,253.6,3.96821137]
[1737761959990,9.72921369,253.65,253.6,0.02531137]
[1737761960591,3.9428,253.61,253.6,0.02531137]
[1737761961985,9.72921369,253.65,253.54,3.9439]
[1737761962183,3.9431,253.59,253.54,3.9439]
[1737761962884,3.9433,253.58,253.52,3.9441]
[1737761963092,9.69994844,253.65,253.52,3.9441]
[1737761963292,0.02801326,253.58,253.52,3.97245341]
[1737761963590,0.02801326,253.58,253.52,0.02835341]
[1737761963785,3.97141326,253.58,253.53,3.9441]
[1737761964690,3.97141326,253.58,253.52,0.02835341]
[1737761965994,3.97141326,253.58,253.52,3.97255341]
[1737761966290,0.02801326,253.58,253.52,0.02835341]
[1737761966592,0.02801326,253.58,253.54,3.9439]
[1737761967293,0.02801326,253.58,253.56,3.9436]
[1737761967494,0.02801326,253.58,253.53,9.69994844]
[1737761967695,0.02801326,253.58,253.54,1.3632]
[1737761967994,0.02801326,253.58,253.54,2.6585]
[1737761969087,0.02801326,253.58,253.57,3.9434]
[1737761971793,9.69994844,253.69,253.54,2.6585]
[1737761971997,3.9417,253.68,253.62,3.9426]
[1737761972899,0.02846464,253.68,253.63,3.9425]
[1737761975993,0.02846464,253.68,253.62,0.03015539]
[1737761976592,9.72841308,253.68,253.62,0.03015539]
[1737761977792,3.9421,253.66,253.62,0.03015539]
[1737761977988,9.72841308,253.68,253.62,0.03015539]
[1737761978700,3.9422,253.65,253.62,0.03015539]
[1737761979296,3.9421,253.66,253.62,3.97275539]
[1737761981602,0.02846464,253.68,253.62,0.03015539]
[1737761982101,9.72841308,253.68,253.62,0.03015539]
[1737761982402,3.9425,253.63,253.62,0.03015539]
[1737761984598,3.9421,253.66,253.62,0.03015539]
[1737761984804,9.72841308,253.68,253.62,0.03015539]
[1737761986102,3.9422,253.65,253.62,0.03015539]
[1737761986502,9.72841308,253.68,253.62,0.03015539]
[1737761986702,3.9424,253.64,253.62,0.03015539]
[1737761990100,6.21028796,253.66,253.62,0.03015539]
[1737761990305,0.02846464,253.68,253.62,0.03015539]
[1737761990907,0.02846464,253.68,253.66,3.942]
[1737761992908,0.02846464,253.68,253.64,6.21028796]
[1737761993203,0.02846464,253.68,253.67,10.15218796]
[1737761993408,3.9405,253.77,253.67,6.21028796]
[1737761993904,3.9405,253.77,253.71,3.9411]
[1737761994408,3.9405,253.77,253.68,3.9416]
[1737761994599,0.02775455,253.77,253.71,0.02815935]
[1737761996309,0.02775455,253.77,253.72,3.941]
[1737761997810,0.02775455,253.77,253.71,0.02815935]
[1737761998007,9.69473868,253.76,253.71,0.02815935]
[1737761998905,3.9411,253.72,253.71,0.02815935]
[1737762000617,3.9409,253.74,253.71,0.02815935]
[1737762003118,21.53473868,253.72,253.46,12.75049111]
[1737762003324,9.69473868,253.66,253.46,12.75049111]
[1737762003524,9.69473868,253.62,253.46,3.05575243]
[1737762003719,3.9431,253.6,253.46,12.75049111]
[1737762004416,0.0280797,253.56,253.5,0.02894924]
[1737762005221,0.0280797,253.56,253.5,3.97344924]
[1737762007121,3.9438,253.55,253.5,0.02894924]
[1737762009921,3.9439,253.54,253.5,0.02894924]
[1737762010221,0.0280797,253.56,253.5,0.02894924]
[1737762010825,3.9443,253.52,253.5,0.02894924]
[1737762011026,9.69473868,253.54,253.37,1.335]
[1737762011221,9.69473868,253.49,253.37,1.335]
[1737762011425,3.9455,253.44,253.37,5.2815]
[1737762012121,0.02527203,253.43,253.38,0.02500678]
[1737762013126,3.9461,253.4,253.38,0.02500678]
[1737762017229,3.9471,253.34,253.28,2.5371]
[1737762017528,9.69473868,253.41,253.28,2.5371]
[1737762017729,3.9469,253.35,253.29,3.9478]
[1737762018129,9.69473868,253.37,253.27,3.9481]
[1737762018330,3.97705003,253.35,253.29,0.03025002]
[1737762019628,0.03005003,253.35,253.29,3.97805002]
[1737762020331,3.97695003,253.35,253.29,3.97805002]
[1737762021034,3.9472,253.33,253.29,0.03025002]
[1737762024135,0.03005003,253.35,253.29,0.03025002]
[1737762024835,0.03005003,253.35,253.3,3.9476]
[1737762026136,3.97695003,253.35,253.29,0.03025002]
[1737762026339,0.03005003,253.35,253.29,0.03025002]
[1737762027238,3.947,253.34,253.29,3.97805002]
[1737762029638,6.22565449,253.33,253.29,3.97805002]
[1737762030040,10.17325449,253.31,253.29,0.03025002]
[1737762031643,3.9476,253.31,253.29,0.03025002]
[1737762033243,9.75949379,253.35,253.29,0.03025002]
[1737762034237,13.70649379,253.35,253.29,0.03025002]
[1737762034443,3.97705003,253.35,253.29,3.97795002]
[1737762034741,3.97705003,253.35,253.29,0.03025002]
[1737762036142,3.97705003,253.35,253.3,3.9476]
[1737762037544,3.97705003,253.35,253.29,0.03025002]
[1737762037741,3.97705003,253.35,253.31,3.9475]
[1737762040339,9.75949379,253.35,253.29,0.03025002]
[1737762041242,3.9476,253.31,253.29,0.03025002]
[1737762041541,9.75949379,253.35,253.29,0.03025002]
[1737762042446,3.9472,253.33,253.29,3.97805002]
[1737762042945,3.9475,253.31,253.29,0.03025002]
[1737762043844,3.9473,253.33,253.29,0.03025002]
[1737762045144,3.9473,253.33,253.29,3.97795002]
[1737762047148,9.75949379,253.35,253.29,0.03025002]
[1737762047350,3.9474,253.32,253.29,0.03025002]
[1737762049651,3.9472,253.33,253.29,3.97805002]
[1737762050350,3.9472,253.33,253.3,3.9476]
[1737762051353,9.75949379,253.35,253.29,0.03025002]
[1737762051354,13.70649379,253.35,253.31,3.9474]
[1737762051853,6.22520259,253.34,253.29,0.03025002]
[1737762053153,6.22520259,253.34,253.31,3.9474]
[1737762053853,0.03005003,253.35,253.34,3.947]
[1737762054754,0.03005003,253.35,253.32,5.2693]
[1737762054947,6.22520259,253.34,253.29,0.03025002]
[1737762055349,6.22520259,253.31,253.29,0.03025002]
[1737762056056,10.17280259,253.31,253.29,0.03025002]
[1737762056251,6.22520259,253.31,253.29,0.03025002]
[1737762056657,6.22520259,253.31,253.2,3.9491]
[1737762056954,6.22520259,253.27,253.2,3.9491]
[1737762057152,6.22520259,253.27,253.19,6.22520259]
[1737762057350,6.22520259,253.27,253.21,3.949]
[1737762057752,6.25086658,253.27,253.21,3.97637594]
[1737762059256,6.25086658,253.27,253.23,3.9487]
[1737762059257,0.02566399,253.27,253.23,3.9487]
[1737762060163,6.25086658,253.27,253.21,0.02737594]
[1737762060558,10.19916658,253.27,253.21,0.02737594]
[1737762060953,6.25086658,253.27,253.21,0.02737594]
[1737762062058,6.25086658,253.27,253.22,3.9488]
[1737762062059,10.19896658,253.27,253.22,3.9488]
[1737762062466,6.25086658,253.27,253.21,0.02737594]
[1737762063567,3.9483,253.26,253.21,0.02737594]
[1737762063968,0.02566399,253.27,253.25,3.9484]
[1737762064169,0.02566399,253.27,253.22,6.22520259]
[1737762064767,0.02566399,253.27,253.26,3.9483]
[1737762066370,0.02566399,253.27,253.22,6.22520259]
[1737762067068,0.02566399,253.27,253.25,3.9484]
[1737762067271,0.02566399,253.27,253.22,6.22520259]